fUSD/lending_fUSD_20260108
["ID","MTS","AMOUNT","RATE_DAILY","PERIOD"]
[400819770,1767837479027,-10000.01,0.00013742,2]
[400819771,1767837479136,-10000.01,0.00013742,2]
[400819772,1767837480002,-10000.01,0.00013742,2]
[400819773,1767837480016,-10000.01,0.00013742,2]
[400819774,1767837481968,-285.72143961,0.00013742,2]
[400819778,1767837484595,-225.77854245,0.00013742,2]
[400819785,1767837487291,-250.0,0.00013742,2]
[400819787,1767837489907,-335.51105991,0.00013742,2]
[400819789,1767837494192,-350.0,0.00013742,2]
[400819790,1767837495948,-297.2,0.00013742,2]
[400819791,1767837497574,-289.26554985,0.00013742,2]
[400819792,1767837500418,-255.0,0.00013742,2]
[400819793,1767837502175,-260.154517,0.00013742,2]
[400819795,1767837504185,-160.30780307,0.00013742,2]
[400819832,1767837505705,-224.74559645,0.00013742,2]
[400819834,1767837509085,-931.94522797,0.00013742,2]
[400819835,1767837511247,-541.1955794,0.00013742,2]
[400819836,1767837513187,-639.53143501,0.00013742,2]
[400819861,1767837551300,-300.0,0.00013741,2]
[400819862,1767837551336,-9400.01,0.00013742,2]
[400819866,1767837560473,-10000.01,0.00013742,2]
[400819879,1767837609433,642.8046772,0.00013642,2]
[400819881,1767837617098,642.8046772,0.00013642,2]
[400819882,1767837631235,2500.0,0.00013642,2]
[400819892,1767837658869,376.54452021,0.00013642,2]
[400819896,1767837667236,-321.61320066,0.00013642,2]
[400819898,1767837670825,-6214.4006456,0.00013642,2]
[400819899,1767837671412,-211.45476909,0.00013642,2]
[400819909,1767837673857,-10000.01,0.00013642,2]
[400819910,1767837679871,-1728.49564474,0.00013642,2]
[400819911,1767837679902,-195.0,0.00013721,2]
[400819912,1767837679931,-300.0,0.0001374,2]
[400819913,1767837679960,-406.58838125,0.00013741,2]
[400819914,1767837679990,-281.92137743,0.00013741,2]
[400819915,1767837680026,-603.34306602,0.00013741,2]
[400819916,1767837680055,-500.0,0.00013741,2]
[400819917,1767837680083,-320.8326347,0.00013741,2]
[400819918,1767837680112,-500.0,0.00013741,2]
[400819919,1767837680277,-327.64779172,0.00013741,2]
[400819920,1767837685853,-172.35220828,0.00013741,2]
[400819921,1767837685884,-300.0,0.00013741,2]
[400819922,1767837685915,-1200.0,0.00013741,2]
[400819923,1767837685947,-300.0,0.00013741,2]
[400819924,1767837685976,-150.0,0.00013741,2]
[400819925,1767837686005,-500.0,0.00013741,2]
[400819926,1767837686034,-525.03126034,0.00013741,2]
[400819927,1767837686062,-500.0,0.00013741,2]
[400819928,1767837686091,-500.0,0.00013741,2]
[400819929,1767837686120,-500.0,0.00013741,2]
[400819930,1767837686148,-205.24306276,0.00013741,2]
[400819931,1767837686315,-294.75693724,0.00013741,2]
[400819932,1767837688902,-500.0,0.00013741,2]
[400819933,1767837688934,-500.0,0.00013741,2]
[400819934,1767837688991,-8000.01,0.00013742,2]
[400819935,1767837694993,-186.463,0.00013467,2]
[400819936,1767837695022,-3032.709,0.00013467,2]
[400819937,1767837695088,-3561.666,0.00013742,2]
[400819996,1767837747411,628.8133,0.00013642,2]
[400819999,1767837756621,181.23646539,0.00013741,120]
[400820000,1767837759693,2500.0,0.00013642,2]
[400820004,1767837766896,520.44212642,0.00013642,2]
[400820014,1767837774714,520.44212642,0.00013642,2]
[400820016,1767837777162,203.68375468,0.00013641,2]
[400820021,1767837822085,-300.0,0.0001374,2]
[400820022,1767837822113,-150.0,0.0001374,2]
[400820023,1767837822144,-281.12076755,0.00013741,2]
[400820024,1767837822175,-500.0,0.00013741,2]
[400820025,1767837822202,-500.0,0.00013741,2]
[400820026,1767837822232,-500.0,0.00013741,2]
[400820027,1767837822491,-1217.32633848,0.00013741,2]
[400820030,1767837823782,-10000.01,0.00013741,2]
[400820032,1767837830921,1000.0,0.00012622,2]
[400820033,1767837833315,-10000.01,0.00013741,2]
[400820034,1767837833333,-2254.94038852,0.00013741,2]
[400820035,1767837833344,-154.0,0.00013741,2]
[400820036,1767837833356,-7591.06961148,0.00013742,2]
[400820038,1767837839629,1000.0,0.00012814,2]
[400820045,1767837896757,3370.0072,0.00013642,2]
[400820046,1767837902923,5630.0028,0.00013642,2]
[400820047,1767837902947,8365.4049,0.00013642,2]
[400820048,1767837909242,1431.4095,0.00013642,2]
[400820049,1767837912362,-500.0,0.00013741,2]
[400820050,1767837912392,-300.0,0.00013741,2]
[400820051,1767837912432,-1200.0,0.00013741,2]
[400820052,1767837912723,-6203.2056,0.00013742,2]
[400820053,1767837915304,-500.0,0.00013741,2]
[400820054,1767837915335,-500.0,0.00013741,2]
[400820055,1767837915375,-435.97578005,0.00013741,2]
[400820056,1767837915474,-7128.0584399,0.00013742,2]
[400820057,1767837915520,-10000.01,0.00013742,2]
[400820058,1767837915553,-10000.01,0.00013742,2]
[400820062,1767837918497,-10000.01,0.00013742,2]
[400820064,1767837924416,-10000.01,0.00013742,2]
[400820070,1767837930662,-431.22547914,0.00013642,2]
[400820071,1767837930692,-431.22547914,0.00013642,2]
[400820072,1767837930753,-8275.10808344,0.00013742,2]
[400820097,1767838016713,10000.01,0.00013642,2]
[400820098,1767838016737,7133.43498832,0.00013642,2]
[400820108,1767838045101,2866.57501168,0.00013642,2]
[400820109,1767838045133,10000.01,0.00013642,2]
[400820110,1767838045164,4100.68189059,0.00013642,2]
[400820113,1767838058734,2500.0,0.00013642,2]
[400820114,1767838072378,323.41910939,0.00013642,2]
[400820121,1767838085264,323.41910939,0.00013642,2]
[400820136,1767838134791,-300.0,0.00013733,2]
[400820137,1767838134819,-200.0,0.00013734,2]
[400820138,1767838134848,-200.0,0.00013734,2]
[400820139,1767838134877,-151.0,0.00013734,2]
[400820140,1767838134906,-500.0,0.00013734,2]
[400820141,1767838134934,-151.0,0.00013734,2]
[400820142,1767838134963,-500.0,0.00013734,2]
[400820143,1767838134991,-151.0,0.00013734,2]
[400820144,1767838135020,-500.0,0.00013734,2]
[400820145,1767838135060,-151.0,0.00013734,2]
[400820146,1767838135090,-500.0,0.00013734,2]
[400820147,1767838135119,-151.0,0.00013734,2]
[400820148,1767838135147,-500.0,0.00013734,2]
[400820149,1767838135176,-151.0,0.00013734,2]
[400820150,1767838135205,-500.0,0.00013734,2]
[400820151,1767838135235,-151.0,0.00013734,2]
[400820154,1767838137677,-500.0,0.00013734,2]
[400820155,1767838137707,-151.0,0.00013734,2]
[400820156,1767838137741,-633.89985627,0.00013734,2]
[400820157,1767838137773,-151.0,0.00013734,2]
[400820158,1767838137803,-151.0,0.00013734,2]
[400820159,1767838137832,-151.0,0.00013734,2]
[400820160,1767838137862,-151.0,0.00013734,2]
[400820161,1767838137892,-151.0,0.00013734,2]
[400820162,1767838137925,-200.0,0.00013734,2]
[400820163,1767838137955,-151.0,0.00013734,2]
[400820164,1767838137985,-151.0,0.00013734,2]
[400820165,1767838138015,-151.0,0.00013734,2]
[400820166,1767838138044,-151.0,0.00013734,2]
[400820167,1767838138073,-151.0,0.00013734,2]
[400820168,1767838138103,-151.0,0.00013734,2]
[400820169,1767838138138,-151.0,0.00013734,2]
[400820170,1767838138169,-500.0,0.00013734,2]
[400820171,1767838138199,-151.0,0.00013734,2]
[400820172,1767838138231,-151.0,0.00013734,2]
[400820173,1767838138261,-151.0,0.00013734,2]
[400820174,1767838138292,-151.0,0.00013734,2]
[400820175,1767838138323,-151.0,0.00013734,2]
[400820176,1767838138353,-151.0,0.00013734,2]
[400820177,1767838138385,-151.0,0.00013734,2]
[400820178,1767838138416,-141.21028746,0.00013734,2]
[400820179,1767838140641,-9.78971254,0.00013734,2]
[400820180,1767838140670,-151.0,0.00013734,2]
[400820181,1767838140699,-151.0,0.00013734,2]
[400820182,1767838140729,-151.0,0.00013734,2]
[400820183,1767838140765,-500.0,0.00013741,2]
[400820184,1767838140796,-500.0,0.00013741,2]
[400820185,1767838140826,-330.37464563,0.00013741,2]
[400820186,1767838140856,-150.0,0.00013741,2]
[400820187,1767838140887,-500.0,0.00013741,2]
[400820188,1767838140916,-500.0,0.00013741,2]
[400820189,1767838140950,-500.0,0.00013741,2]
[400820190,1767838140982,-527.43778756,0.00013741,2]
[400820192,1767838153541,3796.44715343,0.00032876,120]
[400820214,1767838197421,600.0,0.00032876,120]
[400820218,1767838228227,280.90295053,0.00013642,2]
[400820225,1767838231611,-2372.8574426,0.00013726,2]
[400820226,1767838231620,-300.0,0.0001374,2]
[400820227,1767838231630,-1176.4919718,0.0001374,2]
[400820228,1767838231642,-23.5080282,0.0001374,2]
[400820229,1767838231651,-453.98406132,0.00013741,2]
[400820230,1767838231663,-548.35901488,0.00013741,2]
[400820231,1767838231672,-201.42473118,0.00013741,2]
[400820232,1767838231682,-500.0,0.00013741,2]
[400820233,1767838231692,-500.0,0.00013741,2]
[400820234,1767838231701,-167.15146911,0.00013741,2]
[400820235,1767838231741,-332.84853089,0.00013741,2]
[400820236,1767838231751,-500.0,0.00013741,2]
[400820237,1767838231760,-169.06252426,0.00013741,2]
[400820238,1767838231770,-500.0,0.00013741,2]
[400820239,1767838231779,-500.0,0.00013741,2]
[400820240,1767838231788,-248.02149213,0.00013741,2]
[400820241,1767838231799,-162934.87071507,0.00013742,2]
[400820242,1767838231809,-6593.34693005,0.00013742,2]
[400820243,1767838231820,-871.14161176,0.00013742,2]
[400820245,1767838231839,-1284.78379118,0.00013742,2]
[400820247,1767838231850,-612.78854042,0.00013742,2]
[400820249,1767838231861,-1095.14892138,0.00013742,2]
[400820250,1767838231873,-583.32,0.00013742,2]
[400820257,1767838237689,-4081.51319785,0.00013742,2]
[400820258,1767838237701,-547.5100799,0.00013742,2]
[400820259,1767838237712,-873.39,0.00013742,2]
[400820260,1767838237743,-919.38,0.00013742,2]
[400820261,1767838237796,-1881.32101436,0.00013742,2]
[400820262,1767838237851,-411099.37837729,0.00013742,2]
[400820263,1767838237860,-33580.3823,0.00013742,2]
[400820264,1767838237869,-151.0,0.00013742,2]
[400820265,1767838237878,-151.0,0.00013742,2]
[400820266,1767838237888,-3696.35,0.00013823,2]
[400820267,1767838237897,-200.0,0.00013841,2]
[400820268,1767838237906,-334.05,0.00013853,2]
[400820269,1767838237915,-500.0,0.00013942,2]
[400820270,1767838237924,-500.0,0.00013942,2]
[400820271,1767838237933,-500.0,0.00013942,2]
[400820272,1767838237952,-430.91456548,0.00013942,2]
[400820274,1767838237963,-500.0,0.00013942,2]
[400820276,1767838237972,-500.0,0.00013942,2]
[400820278,1767838237982,-500.0,0.00013942,2]
[400820279,1767838237992,-502.25127096,0.00013942,2]
[400820280,1767838238001,-1269.08110804,0.00013942,2]
[400820281,1767838238011,-200.0,0.00013979,2]
[400820283,1767838238021,-5190.16,0.00014012,2]
[400820285,1767838238030,-2107.0,0.00014072,2]
[400820287,1767838238040,-1197.41,0.00014115,2]
[400820288,1767838238049,-309.81,0.00014115,2]
[400820290,1767838238060,-17133.44498831,0.00014115,2]
[400820292,1767838238070,-16967.26690224,0.00014115,2]
[400820294,1767838238080,-200.0,0.00014119,2]
[400820296,1767838238089,-150.0,0.00014167,2]
[400820298,1767838238099,-719.85,0.00014167,2]
[400820299,1767838238108,-999.99,0.00014167,2]
[400820300,1767838238117,-9999.99,0.00014167,2]
[400820301,1767838238128,-150.99,0.00014167,2]
[400820302,1767838238137,-39509.98,0.00014167,2]
[400820303,1767838238146,-499.99,0.00014167,2]
[400820304,1767838238155,-2572.28,0.00014167,2]
[400820305,1767838238165,-280.90295048,0.0001425,2]
[400820306,1767838238174,-200.0,0.0001426,2]
[400820307,1767838238183,-200.0,0.00014282,2]
[400820308,1767838238193,-202.84026902,0.00014282,2]
[400820309,1767838238202,-500.0,0.00014282,2]
[400820310,1767838238211,-500.0,0.00014381,2]
[400820312,1767838238221,-9999.99,0.00014381,2]
[400820314,1767838238230,-299.99,0.00014381,2]
[400820315,1767838238239,-7905.49,0.00014381,2]
[400820317,1767838238248,-200.0,0.00014403,2]
[400820321,1767838238271,-25307.05368476,0.00014493,2]
[400820324,1767838238292,-17133.44498831,0.00014588,2]
[400820326,1767838238307,-16967.26690224,0.00014588,2]
[400820329,1767838238320,-460.53468088,0.0001473,2]
[400820331,1767838238336,-500.0,0.0001483,2]
[400820334,1767838238351,-20309.51,0.0001487,2]
[400820337,1767838238367,-477.11,0.00014924,2]
[400820339,1767838238384,-150.0,0.00014955,2]
[400820342,1767838238399,-150.0,0.00014955,2]
[400820344,1767838238411,-500.0,0.00014955,2]
[400820346,1767838238424,-150.0,0.00014955,2]
[400820349,1767838238438,-500.0,0.00014955,2]
[400820352,1767838238452,-500.0,0.00014955,2]
[400820354,1767838238468,-500.0,0.00014955,2]
[400820356,1767838238481,-150.0,0.00014955,2]
[400820359,1767838238496,-150.0,0.00014955,2]
[400820361,1767838238512,-500.0,0.00014955,2]
[400820364,1767838238528,-150.0,0.00014955,2]
[400820366,1767838238543,-150.0,0.00014955,2]
[400820369,1767838238556,-150.0,0.00014955,2]
[400820371,1767838238570,-150.0,0.00014955,2]
[400820374,1767838238586,-150.0,0.00014955,2]
[400820377,1767838238602,-500.0,0.00014955,2]
[400820379,1767838238616,-500.0,0.00014955,2]
[400820381,1767838238628,-150.6048441,0.00014955,2]
[400820383,1767838238640,-960.0,0.00014955,2]
[400820386,1767838238652,-500.0,0.00014955,2]
[400820388,1767838238668,-500.0,0.00014955,2]
[400820390,1767838238679,-500.0,0.00014955,2]
[400820393,1767838238690,-150.0,0.00014955,2]
[400820395,1767838238703,-500.0,0.00014955,2]
[400820398,1767838238719,-500.0,0.00014955,2]
[400820400,1767838238731,-150.0,0.00014955,2]
[400820402,1767838238742,-500.0,0.00014955,2]
[400820404,1767838238753,-150.0,0.00014955,2]
[400820406,1767838238765,-935.0,0.00014955,2]
[400820410,1767838238788,-150.0,0.00014955,2]
[400820412,1767838238802,-641.0,0.00014955,2]
[400820415,1767838238820,-500.0,0.00014955,2]
[400820418,1767838238837,-500.0,0.00014955,2]
[400820421,1767838238852,-500.0,0.00015009,2]
[400820424,1767838238869,-164.77040348,0.0001501,2]
[400820426,1767838238884,-500.0,0.0001501,2]
[400820429,1767838238901,-150.0,0.0001501,2]
[400820431,1767838238916,-150.0,0.0001501,2]
[400820434,1767838238930,-521.38436778,0.0001501,2]
[400820437,1767838238946,-500.0,0.0001501,2]
[400820439,1767838238960,-500.0,0.0001501,2]
[400820442,1767838238974,-233.66248833,0.0001501,2]
[400820444,1767838238988,-150.0,0.0001501,2]
[400820447,1767838239002,-500.0,0.0001501,2]
[400820449,1767838239016,-150.0,0.0001501,2]
[400820451,1767838239029,-150.0,0.0001501,2]
[400820454,1767838239042,-150.0,0.0001501,2]
[400820456,1767838239056,-150.0,0.0001501,2]
[400820459,1767838239071,-150.0,0.0001501,2]
[400820461,1767838239085,-500.0,0.0001501,2]
[400820464,1767838239099,-500.0,0.0001501,2]
[400820466,1767838239112,-960.0,0.0001501,2]
[400820468,1767838239125,-500.0,0.0001501,2]
[400820471,1767838239139,-500.0,0.0001501,2]
[400820473,1767838239152,-500.0,0.0001501,2]
[400820476,1767838239167,-500.0,0.0001501,2]
[400820478,1767838239181,-500.0,0.0001501,2]
[400820480,1767838239194,-500.0,0.0001501,2]
[400820483,1767838239207,-150.0,0.0001501,2]
[400820485,1767838239220,-935.0,0.0001501,2]
[400820487,1767838239233,-242.66022183,0.0001501,2]
[400820490,1767838239245,-641.0,0.0001501,2]
[400820492,1767838239258,-500.0,0.0001501,2]
[400820494,1767838239272,-460.53468086,0.00015041,2]
[400820497,1767838239285,-420.0,0.00015057,2]
[400820499,1767838239298,-17133.44498831,0.00015061,2]
[400820502,1767838239311,-16967.26690224,0.00015061,2]
[400820504,1767838239324,-500.0,0.00015065,2]
[400820506,1767838239336,-211.64498178,0.00015065,2]
[400820509,1767838239349,-207.79708825,0.00015065,2]
[400820511,1767838239362,-500.87444432,0.00015065,2]
[400820513,1767838239375,-500.0,0.00015065,2]
[400820515,1767838239387,-151.6013451,0.00015065,2]
[400820518,1767838239400,-503.28378349,0.00015065,2]
[400820520,1767838239412,-150.36552725,0.00015065,2]
[400820522,1767838239425,-150.0,0.00015065,2]
[400820525,1767838239437,-150.0,0.00015065,2]
[400820527,1767838239450,-150.0,0.00015065,2]
[400820529,1767838239463,-217.19962447,0.00015065,2]
[400820532,1767838239475,-580.07664263,0.00015065,2]
[400820534,1767838239487,-500.88287597,0.00015065,2]
[400820537,1767838239504,-960.0,0.00015065,2]
[400820539,1767838239520,-500.0,0.00015065,2]
[400820541,1767838239536,-624.66885568,0.00015065,2]
[400820544,1767838239550,-354.24120762,0.00015065,2]
[400820546,1767838239564,-500.0,0.00015065,2]
[400820549,1767838239578,-500.0,0.00015065,2]
[400820551,1767838239591,-500.0,0.00015065,2]
[400820553,1767838239605,-150.0,0.00015065,2]
[400820556,1767838239619,-935.0,0.00015065,2]
[400820558,1767838239633,-641.0,0.00015065,2]
[400820561,1767838239646,-500.0,0.00015065,2]
[400820563,1767838239659,-882.0,0.00015068,2]
[400820565,1767838239672,-166.61911688,0.00015073,2]
[400820568,1767838239686,-500.0,0.00015073,2]
[400820572,1767838239699,-500.0,0.00015073,2]
[400820575,1767838239712,-500.0,0.00015073,2]
[400820580,1767838239725,-500.0,0.00015073,2]
[400820582,1767838239738,-500.0,0.00015073,2]
[400820584,1767838239751,-500.0,0.00015073,2]
[400820588,1767838239763,-500.0,0.00015073,2]
[400820591,1767838239776,-500.0,0.00015073,2]
[400820593,1767838239789,-500.0,0.00015073,2]
[400820597,1767838239802,-500.0,0.00015073,2]
[400820599,1767838239815,-500.0,0.00015073,2]
[400820601,1767838239828,-500.44132788,0.00015073,2]
[400820603,1767838239841,-500.0,0.00015073,2]
[400820606,1767838239853,-500.0,0.00015073,2]
[400820608,1767838239866,-500.0,0.00015073,2]
[400820610,1767838239878,-500.0,0.00015073,2]
[400820613,1767838239891,-500.0,0.00015073,2]
[400820615,1767838239903,-500.0,0.00015073,2]
[400820617,1767838239915,-500.0,0.00015073,2]
[400820620,1767838239927,-500.0,0.00015073,2]
[400820622,1767838239939,-500.0,0.00015073,2]
[400820624,1767838239951,-500.0,0.00015073,2]
[400820626,1767838239963,-312.00908556,0.00015073,2]
[400820629,1767838239976,-1362.12,0.00015073,2]
[400820631,1767838239989,-466.04,0.00015093,2]
[400820633,1767838240001,-195.0,0.00015106,2]
[400820636,1767838240014,-1680.0,0.00015114,2]
[400820638,1767838240026,-195.0,0.00015115,2]
[400820640,1767838240038,-433.59690648,0.00015115,2]
[400820642,1767838240052,-302.67771243,0.00015115,2]
[400820645,1767838240065,-300.0,0.00015115,2]
[400820647,1767838240077,-250.0,0.00015115,2]
[400820649,1767838240090,-300.0,0.00015115,2]
[400820651,1767838240103,-195.0,0.00015115,2]
[400820654,1767838240115,-249.62704522,0.00015119,2]
[400820656,1767838240127,-180.41152158,0.00015119,2]
[400820658,1767838240140,-152.76998294,0.00015119,2]
[400820660,1767838240152,-150.67349054,0.00015119,2]
[400820663,1767838240164,-960.0,0.00015119,2]
[400820665,1767838240176,-500.0,0.00015119,2]
[400820667,1767838240188,-500.0,0.00015119,2]
[400820669,1767838240200,-500.0,0.00015119,2]
[400820672,1767838240217,-500.0,0.00015119,2]
[400820675,1767838240231,-180.78475044,0.00015119,2]
[400820677,1767838240244,-935.0,0.00015119,2]
[400820679,1767838240257,-641.0,0.00015119,2]
[400820682,1767838240270,-500.0,0.00015119,2]
[400820684,1767838240283,-960.0,0.00015174,2]
[400820686,1767838240296,-500.0,0.00015174,2]
[400820688,1767838240309,-416.31193931,0.00015174,2]
[400820691,1767838240322,-500.0,0.00015174,2]
[400820694,1767838240335,-500.0,0.00015174,2]
[400820696,1767838240348,-935.0,0.00015174,2]
[400820699,1767838240361,-641.0,0.00015174,2]
[400820701,1767838240373,-500.0,0.00015174,2]
[400820703,1767838240386,-960.0,0.00015229,2]
[400820706,1767838240398,-500.0,0.00015229,2]
[400820708,1767838240411,-500.0,0.00015229,2]
[400820710,1767838240424,-226.77050751,0.00015229,2]
[400820712,1767838240436,-935.0,0.00015229,2]
[400820715,1767838240450,-641.0,0.00015229,2]
[400820717,1767838240461,-500.0,0.00015229,2]
[400820719,1767838240474,-960.0,0.00015284,2]
[400820721,1767838240486,-461.60776378,0.00015284,2]
[400820724,1767838240499,-500.0,0.00015284,2]
[400820726,1767838240511,-935.0,0.00015284,2]
[400820728,1767838240525,-641.0,0.00015284,2]
[400820730,1767838240537,-500.0,0.00015284,2]
[400820732,1767838240549,-3750.03,0.0001531,2]
[400820735,1767838240564,-9999.99,0.0001531,2]
[400820736,1767838240576,-960.0,0.00015339,2]
[400820737,1767838240591,-500.0,0.00015339,2]
[400820738,1767838240604,-935.0,0.00015339,2]
[400820739,1767838240618,-641.0,0.00015339,2]
[400820740,1767838240642,-500.0,0.00015339,2]
[400820741,1767838240662,-500.0,0.00015347,2]
[400820742,1767838240678,-178.7362066,0.00015347,2]
[400820743,1767838240693,-150.0,0.00015347,2]
[400820744,1767838240706,-182.05552821,0.00015347,2]
[400820745,1767838240718,-288.61019467,0.00015347,2]
[400820746,1767838240730,-500.0,0.00015347,2]
[400820747,1767838240742,-1362.12,0.00015347,2]
[400820748,1767838240754,-460.53468086,0.00015352,2]
[400820750,1767838240767,-626.22881488,0.00015378,2]
[400820752,1767838240779,-151.0,0.00015382,2]
[400820754,1767838240790,-151.0,0.00015382,2]
[400820757,1767838240802,-151.0,0.00015387,2]
[400820759,1767838240814,-960.0,0.00015393,2]
[400820761,1767838240826,-500.0,0.00015393,2]
[400820763,1767838240838,-935.0,0.00015393,2]
[400820766,1767838240850,-641.0,0.00015393,2]
[400820768,1767838240862,-500.0,0.00015393,2]
[400820770,1767838240874,-13802.79892516,0.00015401,2]
[400820772,1767838240886,-522.31501888,0.00015402,2]
[400820774,1767838240898,-150.0,0.00015402,2]
[400820777,1767838240910,-500.0,0.00015402,2]
[400820779,1767838240920,-1186.44134713,0.00015442,2]
[400820781,1767838240932,-151.0,0.00015447,2]
[400820784,1767838240946,-960.0,0.00015448,2]
[400820786,1767838240958,-500.0,0.00015448,2]
[400820788,1767838240969,-935.0,0.00015448,2]
[400820790,1767838240980,-641.0,0.00015448,2]
[400820793,1767838240992,-500.0,0.00015448,2]
[400820795,1767838241003,-500.0,0.00015451,2]
[400820797,1767838241014,-494.15824208,0.00015451,2]
[400820799,1767838241025,-500.0,0.00015451,2]
[400820801,1767838241036,-500.0,0.00015451,2]
[400820803,1767838241047,-500.0,0.00015451,2]
[400820806,1767838241060,-500.0,0.00015451,2]
[400820808,1767838241072,-500.0,0.00015451,2]
[400820810,1767838241084,-500.0,0.00015451,2]
[400820812,1767838241095,-414011.8650587,0.00015452,2]
[400820815,1767838241108,-6799.0750253,0.00015452,2]
[400820817,1767838241119,-206.79475921,0.00015457,2]
[400820819,1767838241131,-500.0,0.00015457,2]
[400820821,1767838241141,-151.0,0.0001546,2]
[400820824,1767838241152,-151.0,0.0001546,2]
[400820826,1767838241163,-960.0,0.00015503,2]
[400820828,1767838241174,-500.0,0.00015503,2]
[400820830,1767838241185,-935.0,0.00015503,2]
[400820832,1767838241196,-641.0,0.00015503,2]
[400820834,1767838241207,-500.0,0.00015503,2]
[400820836,1767838241218,-500.0,0.00015511,2]
[400820839,1767838241229,-151.0,0.00015523,2]
[400820841,1767838241240,-151.0,0.00015523,2]
[400820843,1767838241251,-17133.44498831,0.00015534,2]
[400820845,1767838241262,-16967.26690224,0.00015534,2]
[400820847,1767838241273,-166.66,0.00015549,2]
[400820849,1767838241283,-960.0,0.00015558,2]
[400820852,1767838241295,-500.0,0.00015558,2]
[400820854,1767838241306,-935.0,0.00015558,2]
[400820856,1767838241317,-641.0,0.00015558,2]
[400820858,1767838241328,-500.0,0.00015558,2]
[400820860,1767838241339,-500.0,0.00015566,2]
[400820862,1767838241350,-960.0,0.00015613,2]
[400820865,1767838241361,-500.0,0.00015613,2]
[400820867,1767838241372,-935.0,0.00015613,2]
[400820869,1767838241384,-641.0,0.00015613,2]
[400820871,1767838241394,-500.0,0.00015613,2]
[400820874,1767838241407,-212.65120656,0.00015621,2]
[400820876,1767838241422,-1016.8375445,0.00015621,2]
[400820878,1767838241433,-1000.0,0.00015621,2]
[400820880,1767838241444,-412.45872532,0.00015621,2]
[400820882,1767838241456,-556.63084022,0.00015621,2]
[400820885,1767838241467,-1000.0,0.00015621,2]
[400820887,1767838241480,-1000.0,0.00015621,2]
[400820889,1767838241493,-1000.0,0.00015621,2]
[400820891,1767838241505,-503.39731662,0.00015621,2]
[400820894,1767838241518,-1000.0,0.00015621,2]
[400820896,1767838241531,-1000.0,0.00015621,2]
[400820898,1767838241542,-1000.0,0.00015621,2]
[400820900,1767838241553,-1000.0,0.00015621,2]
[400820902,1767838241565,-413.69875704,0.00015621,2]
[400820904,1767838241576,-656.27078391,0.00015621,2]
[400820907,1767838241588,-1000.0,0.00015621,2]
[400820909,1767838241599,-1000.0,0.00015621,2]
[400820911,1767838241609,-1000.0,0.00015621,2]
[400820913,1767838241620,-1000.0,0.00015621,2]
[400820915,1767838241631,-1000.0,0.00015621,2]
[400820918,1767838241642,-1000.0,0.00015621,2]
[400820920,1767838241653,-500.0,0.00015621,2]
[400820922,1767838241664,-1362.12,0.00015621,2]
[400820924,1767838241675,-960.0,0.00015667,2]
[400820927,1767838241689,-500.0,0.00015667,2]
[400820988,1767838241700,-935.0,0.00015667,2]
[400820994,1767838242278,-641.0,0.00015667,2]
[400820998,1767838242312,-500.0,0.00015667,2]
[400821001,1767838242331,-1044.14408766,0.00015668,2]
[400821003,1767838242340,-500.0,0.00015676,2]